Cogmind - Beta 12 @@@ ROGUE MODE // 2023.03.27 @ 22:13:22 Player: Palikka Result: Destroyed by D-53 Grenadier with Mini Grenade Launcher Performance ------------- Evolutions (0) 0 Regions Visited (4) 800 Robots Destroyed (30) 150 Value Destroyed (576) 576 Prototype IDs (25) 500 Alien Tech Used (0) 0 Bonus (155) 155 TOTAL SCORE: 2181 Bonus ------- Follower Combat Kills 67 Aligned with FarCom 300 Friendly Fire -212 Cogmind --------- Core Integrity 0/250 Matter 269/300 Energy 310/310 System Corruption 0% Temperature Cool (2) Movement Core (750) Ox14 Location -9/Mines Parts ------- > --- POWER (1) -------- Fission Core > --- PROPULSION (2) --- (None) > --- UTILITY (2) ------ Large Storage Unit Medium Armor Plating > --- WEAPON (2) ------- Heavy Assault Rifle Heavy Assault Rifle > --- INVENTORY (15) --- Light Fission Core Improved Treads Improved Treads Improved Treads Lightpack 2.0 High-capacity Matter Pod (200) Medium Armor Plating Heavy Assault Rifle Heavy Assault Rifle Grenade Launcher Peak State ------------ > --- POWER ------------ Fission Core > --- PROPULSION ------- Light Treads Improved Treads > --- UTILITY ---------- Large Storage Unit Medium Armor Plating > --- WEAPON ----------- Heavy Assault Rifle Heavy Assault Rifle > --- INVENTORY -------- Light Fission Core Improved Treads Improved Treads Improved Treads Lightpack 2.0 High-capacity Matter Pod Medium Armor Plating Medium Armor Plating Medium Armor Plating Heavy Assault Rifle Heavy Assault Rifle Grenade Launcher Grenade Launcher [Rating: 20] Favorites ----------- Power Ion Engine Engine Ion Engine Power Core Fission Core Propulsion Light Treads Treads Light Treads Utility Large Storage Unit Storage Large Storage Unit Processor Targeting Computer Protection Medium Armor Plating Weapon Heavy Assault Rifle Energy Gun Small Laser Ballistic Gun Heavy Assault Rifle Launcher Grenade Launcher Build | -11 -10 -10 -10 -9 ------- Run | Jun Mat Min Exi Min Slots Evolved . | . . . . . Power . | . . . . . Propulsion . | . . . . . Utility . | . . . . . Weapon . | . . . . . Parts Attached 29 | 6 13 . 3 7 Power 7 | 1 4 . 1 1 Engine 6 | 1 4 . 1 . Core 1 | . . . . 1 Reactor . | . . . . . Propulsion 5 | 2 3 . . . Treads 5 | 2 3 . . . Leg . | . . . . . Wheel . | . . . . . Hover . | . . . . . Flight . | . . . . . Utility 8 | 1 3 . 2 2 Device . | . . . . . Storage 4 | 1 2 . 1 . Processor 1 | . 1 . . . Hackware . | . . . . . Protection 3 | . . . 1 2 Artifact . | . . . . . Weapon 9 | 2 3 . . 4 Energy Gun 2 | 1 1 . . . Energy Cannon . | . . . . . Ballistic Gun 5 | 1 2 . . 2 Ballistic Cannon . | . . . . . Launcher 2 | . . . . 2 Special Weapon . | . . . . . Impact Weapon . | . . . . . Slashing Weapon . | . . . . . Piercing Weapon . | . . . . . Special Melee Weapon . | . . . . . Unidentified Prototypes . | . . . . . Parts Lost 8 | . 3 . . 5 Power . | . . . . . Propulsion 4 | . 2 . . 2 Utility 2 | . . . . 2 Weapon 2 | . 1 . . 1 Highest Loss Streak 5 | . 2 . . 5 To Critical Strikes . | . . . . . Average Slot Usage (%) 99 | . 99 100 100 99 Engine 13 | . 14 14 14 3 Treads 27 | . 27 28 28 28 Storage 14 | . 14 14 14 14 Processor 11 | . 13 14 4 . Protection 2 | . . . 9 14 Energy Gun 3 | . 7 . . . Ballistic Gun 23 | . 20 28 28 21 Naked Turns . | . . . . . Heaviest Build 43 | 10 31 31 38 43 Greatest Support 43 | 40 43 43 43 43 Greatest Overweight (x) 1 | . 1 . . . Average Overweight (x) . | . . . . . Largest Inventory Capacity 15 | 8 15 15 15 15 Average Capacity 14 | 7 13 15 15 15 Most Carried 15 | 4 15 15 15 15 Average Carried 13 | 2 12 15 14 14 Final Capacity 15 | 8 15 15 15 15 Final Carried 15 | 4 15 15 15 12 Class Distribution -------------------- 100% | Mutant Dominant Class ---------------- Mutant | -10/Materials Mutant | -10/Mines Mutant | -10/Exiles Mutant | -9/Mines Resources | -11 -10 -10 -10 -9 ----------- Run | Jun Mat Min Exi Min Matter Collected 1133 | 190 624 54 60 205 Remotely . | . . . . . Salvage Created 1174 | . 1016 53 . 105 Parts 59 | . 52 3 . 4 Haulers Intercepted 2 | . 2 . . . Recyclers Shooed 4 | . 4 . . . Parts Field Recycled . | . . . . . Retrieved Matter . | . . . . . Parts Self-Destructed . | . . . . . Prevented . | . . . . . Kills | -11 -10 -10 -10 -9 ------- Run | Jun Mat Min Exi Min Combat Hostiles Destroyed 28 | . 14 3 . 11 Guns 18 | . 14 3 . 1 AOE 10 | . . . . 10 Classes Destroyed 8 | . 6 . . 2 Worker 1 | . 1 . . . Builder 1 | . . . . 1 Hauler 2 | . 2 . . . Recycler 4 | . 4 . . . Watcher 3 | . 3 . . . Swarmer 6 | . 3 3 . . Grunt 13 | . 11 . . 2 Assembled 10 | . . . . 10 Best Kill Streak 10 | . 5 3 . 10 Combat Bots Only 10 | . 4 3 . 10 Max Kills in Single Turn 2 | . 2 1 . 2 Gunslinging 1 | . 1 . . . Exploded 2 | . . . . 2 Melee . | . . . . . Uniques/NPCs Destroyed . | . . . . . Combat | -11 -10 -10 -10 -9 -------- Run | Jun Mat Min Exi Min Damage Taken 1870 | . 774 141 . 955 Core 254 | . 107 20 . 127 Absorbed by Shields . | . . . . . Core Remaining (%) 100 | 100 . . . . Volleys Fired 106 | . 76 9 . 21 Largest 2 | . 2 2 . 2 Hottest 60 | . 60 46 . 46 Shots Fired 193 | . 151 18 . 24 Gun 176 | . 151 18 . 7 Cannon . | . . . . . Launcher 17 | . . . . 17 Special . | . . . . . Kinetic 123 | . 98 18 . 7 Thermal 53 | . 53 . . . Explosive 17 | . . . . 17 Electromagnetic . | . . . . . Robot Hit Streak 16 | . 16 5 . 5 Robot Miss Streak 3 | . 3 3 . 3 Penetration Max . | . . . . . Secondary Targets 1 | . 1 . . . Max Gunslinging Chain 1 | . 1 . . . Shots Hit Robots 130 | . 114 10 . 6 Core Hits 81 | . 41 4 . 36 Critical Kills 1 | . 1 . . . Critical Parts Destroyed . | . . . . . Critical Strikes 1 | . 1 . . . Destroy 1 | . 1 . . . Melee Attacks . | . . . . . Impact . | . . . . . Slashing . | . . . . . Piercing . | . . . . . Sneak Attacks . | . . . . . Combat Hostiles . | . . . . . Follow-up Attacks . | . . . . . Damage Inflicted 2462 | . 1306 157 . 999 Guns 1516 | . 1306 157 . 53 Cannons . | . . . . . Explosions 946 | . . . . 946 Melee . | . . . . . Ramming . | . . . . . Kinetic 1068 | . 858 157 . 53 Thermal 448 | . 448 . . . Explosive 946 | . . . . 946 Electromagnetic . | . . . . . Impact . | . . . . . Slashing . | . . . . . Piercing . | . . . . . Highest Corruption . | . . . . . Average Corruption . | . . . . . Corruption Purged . | . . . . . Corruption Blocked . | . . . . . Overload Shots . | . . . . . Overflow Damage . | . . . . . Projectiles . | . . . . . Explosions . | . . . . . Melee . | . . . . . Knockbacks . | . . . . . Impact . | . . . . . Kinetic . | . . . . . Secondary . | . . . . . Self-Inflicted Damage 7 | . . . . 7 Shots 1 | . . . . 1 Rammed . | . . . . . Targets Rammed . | . . . . . Kicked . | . . . . . Crushed . | . . . . . Highest Temperature 295 | . 295 . . 26 Average Temperature 83 | . 91 . . 8 Received Heat Transfer 459 | . 441 . . 18 Siege Activations . | . . . . . Robots Corrupted . | . . . . . Combat Hostiles . | . . . . . Parts Fried . | . . . . . Impact Corruptions . | . . . . . Robots Melted . | . . . . . Combat Hostiles . | . . . . . Parts Melted . | . . . . . Heat Transferred 1025 | . 1025 . . . Parts Sabotaged . | . . . . . Parts Stolen . | . . . . . Parts Stripped . | . . . . . Power Chain Reactions . | . . . . . Missiles Intercepted . | . . . . . Alert | -11 -10 -10 -10 -9 ------- Run | Jun Mat Min Exi Min Peak Influence 147 | . 147 141 . 67 Initial 13 | . . 13 . . Average 64 | . 66 73 . 24 Maximum Alert Level . | . . . . . Low Security (%) 100 | 100 100 100 . 100 Level 1 . | . . . . . Level 2 . | . . . . . Level 3 . | . . . . . Level 4 . | . . . . . Level 5 . | . . . . . High Security . | . . . . . Max Security . | . . . . . Squads Dispatched 5 | . 4 . . 1 Investigation 2 | . 1 . . 1 Extermination . | . . . . . Reinforcement 3 | . 3 . . . Assault . | . . . . . Garrison . | . . . . . Intercept . | . . . . . Searches Triggered . | . . . . . Construction Impeded . | . . . . . Haulers Reinforced . | . . . . . Active Scanning Responses . | . . . . . Cargo Convoy Interrupts . | . . . . . Stealth | -11 -10 -10 -10 -9 --------- Run | Jun Mat Min Exi Min Distress Signals 3 | . 3 . . . Communications Jammed . | . . . . . Distress Signals . | . . . . . Times Spotted 60 | . 31 7 . 22 Peak Tracking Total 17 | . 6 3 . 17 Tactical Retreats 2 | . . . . 2 Traps | -11 -10 -10 -10 -9 ------- Run | Jun Mat Min Exi Min Traps Triggered 2 | . 2 . . . Indirectly . | . . . . . Trap Hack Attempts . | . . . . . Triggered . | . . . . . Disarmed . | . . . . . Reprogrammed . | . . . . . Reused . | . . . . . Traps Extracted . | . . . . . Installed . | . . . . . Triggered . | . . . . . Machines | -11 -10 -10 -10 -9 ---------- Run | Jun Mat Min Exi Min Machines Disabled . | . . . . . Max in Single Turn . | . . . . . Machines Repaired . | . . . . . Machines Sabotaged . | . . . . . Overloaded Fab Kills . | . . . . . Hacking | -11 -10 -10 -10 -9 --------- Run | Jun Mat Min Exi Min Machines Accessed 7 | . 5 . 1 1 Terminals 5 | . 5 . . . Fabricators . | . . . . . Repair Stations . | . . . . . Recycling Units . | . . . . . Scanalyzers . | . . . . . Garrison Access . | . . . . . Total Hacks 14 | . 12 . 1 1 Successful 5 | . 3 . 1 1 Failed 9 | . 9 . . . Catastrophic 1 | . 1 . . . Database Lockouts . | . . . . . Manual 6 | . 5 . 1 . Terminals 12 | . 12 . . . Fabricators . | . . . . . Repair Stations . | . . . . . Recycling Units . | . . . . . Scanalyzers . | . . . . . Garrison Access . | . . . . . Terminal Hacks 3 | . 1 . 1 1 Prototype ID Bank 1 | . 1 . . . Open Door 1 | . . . . 1 EX-Prototype ID Bank 1 | . . . 1 . Fabricator Hacks . | . . . . . Repair Station Hacks . | . . . . . Recycling Unit Hacks . | . . . . . Scanalyzer . | . . . . . Garrison Access Hacks . | . . . . . Unauthorized Hacks 2 | . 2 . . . Terminals 2 | . 2 . . . Botnet 2 | . 2 . . . Fabricators . | . . . . . Repair Stations . | . . . . . Recycling Units . | . . . . . Scanalyzers . | . . . . . Garrison Access . | . . . . . Data Cores Recovered . | . . . . . Used . | . . . . . Hacking Detections 5 | . 5 . . . Full Trace Events . | . . . . . Feedback Events . | . . . . . Feedback Blocked . | . . . . . Robot Schematics Acquired . | . . . . . Robots Built . | . . . . . Authchips . | . . . . . Time . | . . . . . Total Robot Build Rating . | . . . . . Part Schematics Acquired . | . . . . . Parts Built . | . . . . . Authchips . | . . . . . Time . | . . . . . Total Part Build Rating . | . . . . . Parts Repaired . | . . . . . Time . | . . . . . Parts Recycled . | . . . . . Recycled Matter . | . . . . . Retrieved Matter . | . . . . . Retrieved Components . | . . . . . Parts Scanalyzed . | . . . . . Part Schematics Acquired . | . . . . . Parts Damaged . | . . . . . Bothacking | -11 -10 -10 -10 -9 ------------ Run | Jun Mat Min Exi Min Used RIF Installer . | . . . . . Robots Hacked . | . . . . . Non-combat . | . . . . . Combat . | . . . . . Robot Hacks Applied . | . . . . . Relay Couplers Released . | . . . . . Fabnet Peak Effective % . | . . . . . Robots Rewired . | . . . . . Allies Hacked . | . . . . . Hacks Repelled . | . . . . . Allies | -11 -10 -10 -10 -9 -------- Run | Jun Mat Min Exi Min Total Allies 4 | . . 4 . . Largest Group 4 | . . 4 3 3 Highest-Rated Group 71 | . . 71 40 40 Highest-Rated Ally 31 | . . 31 16 16 Total Orders . | . . . . . Ally Attacks 45 | . . 24 . 21 Total Damage 395 | . . 156 . 239 Kills 9 | . . 6 . 3 Allies Corrupted . | . . . . . Allies Melted . | . . . . . Intel | -11 -10 -10 -10 -9 ------- Run | Jun Mat Min Exi Min Robot Analysis Total . | . . . . . Derelict Logs Recovered 2 | . . 1 . 1 Drone Launches . | . . . . . Drone Recoveries . | . . . . . Exploration | -11 -10 -10 -10 -9 ------------- Run | Jun Mat Min Exi Min Turns Passed 3535 | 77 1769 788 718 183 Spaces Moved 1925 | 42 902 458 444 79 Core 2 | 2 . . . . Treads 1923 | 40 902 458 444 79 Legs . | . . . . . Wheels . | . . . . . Hover . | . . . . . Flight . | . . . . . Fastest Speed 50 | 50 160 160 160 160 Average Speed 160 | 154 160 160 160 160 Slowest Speed 240 | 160 240 160 160 160 Overloaded Moves . | . . . . . Propulsion Burnouts . | . . . . . Robots Hopped . | . . . . . Cave-ins Triggered . | . . . . . Exploration Rate (%) 55 | 4 91 77 88 16 Regions Visited 4 Branch Regions 3 Pre-discovered Areas . | . . . . . Known Exits Taken . | . . . . . Unknown Exits Taken 4 | 1 1 1 1 . Scrap Searched 1 | . . 1 . . Spaces Dug . | . . . . . Terrain Destroyed 83 | . . . . 83 Melee . | . . . . . Projectile . | . . . . . AOE 83 | . . . . 83 Terrain Rammed . | . . . . . Walls Destroyed . | . . . . . Machines Disabled . | . . . . . Actions | -11 -10 -10 -10 -9 --------- Run | Jun Mat Min Exi Min Total 2201 | 51 1088 495 456 111 Wait 94 | . 62 29 . 3 Move 1921 | 41 901 457 443 79 Hop . | . . . . . Pick Up 27 | 4 20 . 3 . Fast Attach 10 | 6 4 . . . Attach 7 | . 2 . 2 3 Detach 2 | . . . 2 . Swap 12 | . 7 . 1 4 Drop 22 | . 16 . 5 1 Fire 106 | . 76 9 . 21 Melee . | . . . . . Ram . | . . . . . Kick . | . . . . . Crush . | . . . . . Escape Stasis . | . . . . . Rewire . | . . . . . Trap . | . . . . . Miscellaneous . | . . . . . Route ------- -11/Junkyard -10/Materials (discovered 4 exits: [*Mat x3] / [*Min]) -10/Mines (discovered 3 exits: [*Mat x2] / *Exi) -10/Exiles -9/Mines History --------- Turn | Location | Event 41 | -11/Junkyard | Discovered new exit (range 15) 78 | -11/Junkyard | Entered Materials 337 | -10/Materials | Build established: Mutant 615 | -10/Materials | Discovered new exit (range 12) 865 | -10/Materials | Discovered new exit (range 14) 1204 | -10/Materials | Discovered new exit (range 16) 1595 | -10/Materials | Discovered new exit (range 16) 1847 | -10/Materials | Entered Mines 1863 | -10/Mines | Core integrity fell below 50% 1888 | -10/Mines | Learned Materials stockpile data 2033 | -10/Mines | YI-UF0 nonchalantly dropped a Grenade Launcher on the ground 2073 | -10/Mines | Discovered new exit (range 6) 2219 | -10/Mines | Assisted by bots powering up and referring to "LRC-V3" 2251 | -10/Mines | Found a damaged Exp. Sensor Array with a note attached 2468 | -10/Mines | Escorted by a lone wolf Derelict 2609 | -10/Mines | Discovered new exit (range 8) 2624 | -10/Mines | Deemed a non-threat by the Exiles lab entrance 2624 | -10/Mines | Discovered new exit (range 5) 2635 | -10/Mines | Entered Exiles 2635 | -10/Exiles | Accompanied by 4 allies 2677 | -10/Exiles | Met 8R-AWN 2741 | -10/Exiles | Met EX-HEX 2787 | -10/Exiles | Met EX-BIN 2810 | -10/Exiles | Aligned with FarCom system 2811 | -10/Exiles | Given EX-Vault access code 2848 | -10/Exiles | Opened EX-Vault 2865 | -10/Exiles | Found Lightpack 2.0 2900 | -10/Exiles | Warned to stay clear of 0b10 Research branches 2943 | -10/Exiles | Met EX-DEC 2992 | -10/Exiles | Visited The Gauntlet 3335 | -10/Exiles | Discovered new exit (range 11) 3353 | -10/Exiles | Left Exiles lab with Lightpack 2.0 3353 | -10/Exiles | Entered Mines 3353 | -9/Mines | Accompanied by 3 allies 3354 | -9/Mines | Assembled infested the area 3359 | -9/Mines | Assisted by a Guerilla fighting off Assembled 3360 | -9/Mines | Learned Materials security intel 3362 | -9/Mines | Met a Derelict shopkeep closing up shop 3419 | -9/Mines | Destroyed 10 combat bots 3531 | -9/Mines | Core integrity fell below 20% 3536 | -9/Mines | Destroyed by D-53 Grenadier with Mini Grenade Launcher Last Messages --------------- 03525_ U-05 Engineer lays Concrete. 03527_ The unstable cave ceiling collapses. 03527_ U-05 Engineer builds a Wall. 03529_ U-05 Engineer lays Concrete. 03530_ The unstable cave ceiling collapses. 03530_ Med. Armor Plating destroyed. 03531_ The unstable cave ceiling collapses. 03531_ U-05 Engineer lays Concrete. 03531_ R-06 Scavenger collects Structural Scanner. 03532_ The unstable cave ceiling collapses. 03532_ U-05 Engineer builds a Wall. 03532_ U-05 Engineer lays Concrete. 03533_ The unstable cave ceiling collapses. 03533_ U-05 Engineer lays Concrete. 03534_ Lgt. Treads destroyed. 03534_ Imp. Treads destroyed. 03535_ The unstable cave ceiling collapses. 03535_ U-05 Engineer lays Concrete. 03536_ The unstable cave ceiling collapses. 03536_ U-05 Engineer lays Concrete. Map ----- +----------------------------------------------------+ | | | | | | | | | ?????????????????????????????????????????????????? | | ?????????????????????????????????????????????????? | | ?????????????????????????????????????????????????? | | ?????????????????????????????????????????????????? | | ?????????????????????????????????????????????????? | | ?????????????????????????????????????????????????? | | ?????????????????????????????????????????????????? | | ?????????????????????????????????????????????????? | | ?????????????????????????????????????????????????? | | ?????????????????????????????????????????????????? | | ??????????????????????????##########?????????????? | | ?????????????????????????## # ##?????######?? | | ????????????????????????## #######""""##? | | ????????????????????????# # = ## ##"]![!"#? | | ???????????????????????## # ## # ##"! !"#? | | ??????????????????????#### ## ## ## #?? | | ?????????????????????## ## ###### # ###? | | ???????????????????### u %[* ! X #? | | ??????????????????## [ ## | | ?????????????????## # ########! ## # | | ?????????????????# % # # ## ## %[ | | ????????????????# @ # ### = | | ???????????????# d ## #???## | | ????????????# d #####????# | | ???????????# r u % < ##????????## | | ??????????? % ####??????????## | | ???????????? ##### ### ##??????????????### | | ???????????? ?????###??###?????????????????## | | ???????????? ????????????????????????????????# | | ???????????????????????????????????????????????### | | ?????????????????????????????????????????????????? | | ?????????????????????????????????????????????????? | | ?????????????????????????????????????????????????? | | ?????????????????????????????????????????????????? | | ?????????????????????????????????????????????????? | | ?????????????????????????????????????????????????? | | ?????????????????????????????????????????????????? | | ?????????????????????????????????????????????????? | | ?????????????????????????????????????????????????? | | ?????????????????????????????????????????????????? | | ?????????????????????????????????????????????????? | | ?????????????????????????????????????????????????? | | ?????????????????????????????????????????????????? | | ?????????????????????????????????????????????????? | | ?????????????????????????????????????????????????? | | ?????????????????????????????????????????????????? | +----------------------------------------------------+ Best States ------------- Heat Dissipation 25 Energy Generation 18 Energy Capacity 310 Matter Stores 300 Matter Capacity 300 Sight Range 16 Terrain Scan Density 10 Armor Coverage 225 Evasion (%) 40 Targeting Accuracy 5 Recoil Reduction 2 Item Schematics ----------------- None Robot Schematics ------------------ None Fabricated ------------ Nothing Alien Tech Used ----------------- None Achievements -------------- None Challenges ------------ None Game ------ Seed HackingLaserThrower Manual? 0 Play Time 00:24:25 Cumulative 350.5 hours Start 2023.03.27 @ 21:50:58 End 2023.03.27 @ 22:13:22 Sessions 1 Manual Loads 0 Difficulty Rogue Special Mode None Game No. 426 Rogue 426 Adventurer 0 Explorer 0 Win Type - Total 36 Types 26/0/7/3/0/0/0/0/0 Lore% 86 Gallery% 81 Achievement% 59 Wizard Run 0 Options --------- ASCII 0 Keyboard 1 Movement Numpad Keybinds 0 Fullscreen 1 Font 24/Smallcaps Map View 76x50 Tactical HUD 1 Map Filters NONE Filters NONE Steam 1 RUN: 6fc25b96-d420-4878-ba55-d57eb784d482